Workbook

Sheet 気づき
A1: 気づき
A2: ①検証の動画での説明を取り違いが多かった。特に管理シート
A4: ②できるだけ、笹田さんの説明のような水平線や斜めの線を入れてみたが
A5: 解からず、ルールの一つ目の買い方向、売り方向でPBを捜し、決済は
A6: 買い方向、売り方向から１０SMA又は２０SMAをキャンドル本体が越えたところ
A7: としました。
A9: ③PBの初心者でもわかるのは少なかった。
A11: ④上昇のときの中指の法則が、長い足のキャンドルが下げの良い目印と
A12: なった。

Sheet ゴロヤン検証（EURUSD４H）
B2: 通貨ペア | D2: EUDUSD | F2: 時間足 | H2: 4H | J2: 当初資金 | L2: =C9 -> 1000000 | N2: 最終資金 | P2: =C108+R108 -> 117804200
B3: エントリー理由 | D3: 10MA・20MAの両方の上側にキャンドルがあれば買い方向、下側なら売り方向。MAに触れてPB出現でエントリー待ち、PB高値or安値ブレイクでエントリー。 | J3: 決済理由 | L3: １０SMA,２０SMAをキャンドルが逆に越えた時
B4: 損益金額 | D4: =SUM($R$9:$S$993) -> 116804200 | F4: 損益pips | H4: =SUM($T$9:$U$108) -> 6375.226 | J4: 最大ドローアップ | L4: =MAX($C$9:$D$990)-C9 -> 120630926 | N4: 最大ドローダウン | P4: =MIN($C$9:$D$990)-C9 -> 0
B5: 勝数 | C5: =COUNTIF($R$9:$R$990,">0") -> 71 | D5: 負数 | E5: =COUNTIF($R$9:$R$990,"<0") -> 29 | F5: 引分 | G5: =COUNTIF($R$9:$R$990,"=0") -> 0 | H5: 勝率 | I5: =C5/SUM(C5,E5,G5) -> 0.71 | J5: 最大連勝 | N5: 最大連敗
B7: No. | C7: 資金 | E7: エントリー | J7: リスク（3%） | M7: ロット | N7: 決済 | R7: 損益
E8: 西暦 | F8: 日付 | G8: 売買 | H8: レート | J8: pips | K8: 損失上限 | N8: 西暦 | O8: 日付 | P8: レート | R8: 金額 | T8: pips
B9: 1 | C9: 1000000 | E9: 2010 | F9: 2015-01-19 | G9: 売 | H9: 1.4281 | J9: 22 | K9: =IF(F9="","",C9*0.03) -> 30000 | M9: =IF(J9="","",ROUNDDOWN(K9/(J9/81)/100000,2)) -> 1.1 | N9: 2010 | O9: 2015-01-22 | P9: 1.4137 | R9: =IF(O9="","",ROUNDDOWN((IF(G9="売",H9-P9,P9-H9))*M9*1000000000/81,0)) -> 195555 | T9: =IF(O9="","",IF(R9<0,J9*(-1),IF(G9="買",(P9-H9)*10000,(H9-P9)*10000))) -> 144
B10: 2 | C10: =IF(R9="","",C9+R9) -> 1195555 | E10: 2010 | F10: 2015-01-28 | G10: 売 | H10: 1.3995 | J10: 56 | K10: 35866.65 | M10: =IF(J10="","",ROUNDDOWN(K10/(J10/81)/100000,2)) -> 0.51 | N10: 2010 | O10: 2015-02-01 | P10: 1.3934 | R10: =IF(O10="","",ROUNDDOWN((IF(G10="売",H10-P10,P10-H10))*M10*1000000000/81,0)) -> 38407 | T10: =IF(O10="","",IF(R10<0,J10*(-1),IF(G10="買",(P10-H10)*10000,(H10-P10)*10000))) -> 61
B11: 3 | C11: 1233962 | E11: 2010 | F11: 2015-02-05 | G11: 売 | H11: 1.36659 | J11: 75 | K11: 37018.86 | M11: =IF(J11="","",ROUNDDOWN(K11/(J11/81)/100000,2)) -> 0.39 | N11: 2010 | O11: 2015-02-08 | P11: 1.3712 | R11: -22196 | T11: -75
B12: 4 | C12: 1211766 | E12: 2010 | F12: 2015-02-10 | G12: 買 | H12: 1.3771 | J12: 38 | K12: 36352.98 | M12: 0.77 | N12: 2010 | O12: 2015-02-10 | P12: 1.3723 | R12: -45629 | T12: -38
B13: 5 | C13: 1166137 | E13: 2010 | F13: 2015-03-19 | G13: 売 | H13: 1.358 | J13: 52 | K13: 34984.11 | M13: 0.54 | N13: 2010 | O13: 2015-03-26 | P13: 1.3352 | R13: 152000 | T13: 228
B14: 6 | C14: 1318137 | E14: 2010 | F14: 2015-04-01 | G14: 買 | H14: 1.352 | J14: 60 | K14: 39544.11 | M14: 0.53 | N14: 2010 | O14: 2015-04-02 | P14: 1.3484 | R14: -23555 | T14: -60
B15: 7 | C15: 1294582 | E15: 2010 | F15: 2015-04-13 | G15: 買 | H15: 1.359 | J15: 44 | K15: 38837.46 | M15: 0.71 | N15: 2010 | O15: 2015-04-15 | P15: 1.3631 | R15: 35938 | T15: 41
B16: 8 | C16: 1330520 | E16: 2010 | F16: 2015-04-28 | G16: 売 | H16: 1.3182 | J16: 83 | K16: 39915.6 | M16: 0.38 | N16: 2010 | O16: 2015-04-29 | P16: 1.3276 | R16: -44098 | T16: -83
B17: 9 | C17: 1286422 | E17: 2010 | F17: 2015-05-05 | G17: 売 | H17: 1.2841 | J17: 62 | K17: 38592.66 | M17: 0.5 | N17: 2010 | O17: 2015-05-07 | P17: 1.2772 | R17: 42592 | T17: 69
B18: 10 | C18: 1329014 | E18: 2010 | F18: 2015-05-14 | G18: 売 | H18: 1.2437 | J18: 95 | K18: 39870.42 | M18: 0.33 | N18: 2010 | O18: 2015-05-17 | P18: 1.2399 | R18: 15481 | T18: 38
B19: 11 | C19: 1344495 | E19: 2010 | F19: 2015-05-18 | G19: 売 | H19: 1.2397 | J19: 46 | K19: 40334.85 | M19: 0.71 | N19: 2010 | O19: 2015-05-19 | P19: 1.2326 | R19: 62234 | T19: 71
B20: 12 | C20: 1406729 | E20: 2010 | F20: 2015-06-04 | G20: 売 | H20: 1.2171 | J20: 43 | K20: 42201.87 | M20: 0.79 | N20: 2010 | O20: 2015-06-08 | P20: 1.1981 | R20: 185308 | T20: 190
B21: 13 | C21: 1592037 | E21: 2010 | F21: 2015-06-10 | G21: 買 | H21: 1.2086 | J21: 78 | K21: 47761.11 | M21: 0.49 | N21: 2010 | O21: 2016-06-17 | P21: 1.226 | R21: 105259 | T21: 174
B22: 14 | C22: 1697296 | E22: 2010 | F22: 2015-06-16 | G22: 買 | H22: 1.2318 | J22: 63 | K22: 50918.88 | M22: 0.65 | N22: 2010 | O22: 2015-06-17 | P22: 1.2242 | R22: -60987 | T22: -63
B23: 15 | C23: 1636309 | E23: 2010 | F23: 2015-06-17 | G23: 買 | H23: 1.2412 | J23: 73 | K23: 49089.27 | M23: 0.54 | N23: 2010 | O23: 2015-06-21 | P23: 1.2349 | R23: -41999 | T23: -73
B24: 16 | C24: 1594310 | E24: 2010 | F24: 2016-07-08 | G24: 買 | H24: 1.2667 | J24: 33 | K24: 47829.3 | M24: 1.17 | N24: 2010 | O24: 2016-07-09 | P24: 1.2609 | R24: -83777 | T24: -33
B25: 17 | C25: 1510533 | E25: 2010 | F25: 2016-07-28 | G25: 買 | H25: 1.3042 | J25: 55 | K25: 45315.99 | M25: 0.66 | N25: 2010 | O25: 2016-08-10 | P25: 1.318 | R25: 112444 | T25: 138
B26: 18 | C26: 1622977 | E26: 2010 | F26: 2016-08-10 | G26: 売 | H26: 1.3144 | J26: 38 | K26: =IF(F26="","",C26*0.03) -> 48689.31 | M26: 1.03 | N26: 2010 | O26: 2016-08-16 | P26: 1.287 | R26: 348419 | T26: 274
B27: 19 | C27: 1971396 | E27: 2010 | F27: 2016-09-15 | G27: 買 | H27: 1.2997 | J27: 44 | K27: =IF(F27="","",C27*0.03) -> 59141.88 | M27: 1.08 | N27: 2010 | O27: 2016-09-23 | P27: 1.332 | R27: 430666 | T27: 323
B28: 20 | C28: 2402062 | E28: 2010 | F28: 2016-09-28 | G28: 買 | H28: 1.3492 | J28: 111 | K28: =IF(F28="","",C28*0.03) -> 72061.86 | M28: 0.52 | N28: 2010 | O28: 2016-10-05 | P28: 1.3645 | R28: 98222 | T28: 153
B29: 21 | C29: 2500284 | E29: 2010 | F29: 2016-10-06 | G29: 買 | H29: 1.3873 | J29: 44 | K29: 75008.52 | M29: 1.38 | N29: 2010 | O29: 2016-10-11 | P29: 1.3866 | R29: -11925 | T29: -44
B30: 22 | C30: 2488359 | E30: 2010 | F30: 2016-11-01 | G30: 買 | H30: 1.3996 | J30: 101 | K30: 74650.77 | M30: 0.59 | N30: 2010 | O30: 2016-11-01 | P30: 1.3886 | R30: -80123 | T30: -101
B31: 23 | C31: 2408236 | E31: 2010 | F31: 2016-11-10 | G31: 売 | H31: 1.3764 | J31: 38 | K31: 72247.08 | M31: 1.54 | N31: 2010 | O31: 2016-11-11 | P31: 1.3819 | R31: -104567 | T31: -38
B32: 24 | C32: 2303669 | E32: 2010 | F32: 2016-11-15 | G32: 売 | H32: 1.3602 | J32: 64 | K32: 69110.07 | M32: 0.87 | N32: 2010 | O32: 2016-11-18 | P32: 1.3606 | R32: -4296 | T32: -64
B33: 25 | C33: 2299373 | E33: 2010 | F33: 2016-12-02 | G33: 買 | H33: 1.3192 | J33: 132 | K33: 68981.19 | M33: 0.42 | N33: 2010 | O33: 2016-12-07 | P33: 1.3254 | R33: 32148 | T33: 62
B34: 26 | C34: 2331521 | E34: 2010 | F34: 2016-12-27 | G34: 買 | H34: 1.3158 | J34: 32 | K34: 69945.63 | M34: 1.77 | N34: 2010 | O34: 2016-12-28 | P34: 1.3136 | R34: -48074 | T34: -32
B35: 27 | C35: 2283447 | E35: 2011 | F35: 2016-01-20 | G35: 買 | H35: 1.3476 | J35: 79 | K35: 68503.41 | M35: 0.7 | N35: 2011 | O35: 2016-01-28 | P35: 1.3584 | R35: 93333 | T35: 108
B36: 28 | C36: 2376780 | E36: 2011 | F36: 2016-02-24 | G36: 買 | H36: 1.3803 | J36: 53 | K36: 71303.4 | M36: 1.08 | N36: 2011 | O36: 2016-02-25 | P36: 1.3726 | R36: -102666 | T36: -53
B37: 29 | C37: 2274114 | E37: 2011 | F37: 2016-03-03 | G37: 買 | H37: 1.3876 | J37: 43 | K37: 68223.42 | M37: 1.28 | N37: 2011 | O37: 2016-03-08 | P37: 1.3916 | R37: 63209 | T37: 40
B38: 30 | C38: 2337323 | E38: 2011 | F38: 2016-03-09 | G38: 売 | H38: 1.3884 | J38: 50 | K38: 70119.69 | M38: 1.13 | N38: 2011 | O38: 2016-03-11 | P38: 1.3882 | R38: 2790 | T38: 2
B39: 31 | C39: 2340113 | E39: 2011 | F39: 2016-04-08 | G39: 買 | H39: 1.4443 | J39: 26 | K39: 70203.39 | M39: 2.18 | N39: 2011 | O39: 2016-04-12 | P39: 1.4402 | R39: -110345 | T39: -26
B40: 32 | C40: 2229768 | E40: 2011 | F40: 2016-04-18 | G40: 売 | H40: 1.43659 | J40: 21.5 | K40: 66893.04 | M40: 2.52 | N40: 2011 | O40: 2016-04-19 | P40: 1.43156 | R40: 156488 | T40: 50.3
B41: 33 | C41: 2386256 | E41: 2011 | F41: 2016-05-30 | G41: 買 | H41: 1.42828 | J41: 20.9 | K41: 71587.68 | M41: 2.77 | N41: 2011 | O41: 2016-06-01 | P41: 1.43703 | R41: 299228 | T41: 87.5
B42: 34 | C42: 2685484 | E42: 2011 | F42: 2016-06-02 | G42: 買 | H42: 1.4503 | J42: 46.3 | K42: 80564.52 | M42: 1.4 | N42: 2011 | O42: 2016-06-06 | P42: 1.4557 | R42: 93333 | T42: 54
B43: 35 | C43: 2778817 | E43: 2011 | F43: 2016-06-20 | G43: 買 | H43: 1.43176 | J43: 27.2 | K43: 83364.51 | M43: 2.48 | N43: 2011 | O43: 2016-06-22 | P43: 1.4332 | R43: 44088 | T43: 14.4
B44: 36 | C44: 2822905 | E44: 2011 | F44: 2016-06-29 | G44: 買 | H44: 1.44416 | J44: 23.4 | K44: 84687.15 | M44: 2.93 | N44: 2011 | O44: 2016-07-01 | P44: 1.44566 | R44: 54259 | T44: 15
B45: 37 | C45: 2877164 | E45: 2011 | F45: 2016-07-19 | G45: 買 | H45: 1.41752 | J45: 66 | K45: 86314.92 | M45: 1.05 | N45: 2011 | O45: 2016-07-21 | P45: 1.4146 | R45: -37851 | T45: -66
B46: 38 | C46: 2839313 | E46: 2011 | F46: 2016-08-03 | G46: 売 | H46: 1.44181 | J46: 50.6 | K46: 85179.39 | M46: 1.36 | N46: 2011 | O46: 2016-09-07 | P46: 1.40851 | R46: 559111 | T46: 333
B47: 39 | C47: 3398424 | E47: 2011 | F47: 2016-09-07 | G47: 売 | H47: 1.40251 | J47: 122.5 | K47: 101952.72 | M47: 0.67 | N47: 2011 | O47: 2016-09-13 | P47: 1.36784 | R47: 286776 | T47: 346.7
B48: 40 | C48: 3685200 | E48: 2011 | F48: 2016-10-06 | G48: 買 | H48: 1.3368 | J48: 126.3 | K48: 110556 | M48: 0.7 | N48: 2011 | O48: 2016-10-17 | P48: 1.37556 | R48: 334962 | T48: 387.6
B49: 41 | C49: 4020162 | E49: 2011 | F49: 2016-10-21 | G49: 買 | H49: 1.37985 | J49: 93.2 | K49: 120604.86 | M49: 1.04 | N49: 2011 | O49: 2016-10-31 | P49: 1.39863 | R49: 241125 | T49: 187.8
B50: 42 | C50: 4261287 | E50: 2011 | F50: 2016-10-31 | G50: 売 | H50: 1.39763 | J50: 78.9 | K50: 127838.61 | M50: 1.31 | N50: 2011 | O50: 2016-11-02 | P50: 1.38265 | R50: 242269 | T50: 149.8
B51: 43 | C51: 4503556 | E51: 2011 | F51: 2016-12-13 | G51: 売 | H51: 1.3172 | J51: 63.6 | K51: 135106.68 | M51: 1.72 | N51: 2011 | O51: 2016-12-15 | P51: 1.30489 | R51: 261397 | T51: 123.1
B52: 44 | C52: 4764953 | E52: 2012 | F52: 2016-01-17 | G52: 買 | H52: 1.27463 | J52: 29.1 | K52: 142948.59 | M52: 3.97 | N52: 2012 | O52: 2016-01-20 | P52: 1.2917 | R52: 836640 | T52: 170.7
B53: 45 | C53: 5601593 | E53: 2012 | F53: 2016-02-21 | G53: 買 | H53: 1.3269 | J53: 83 | K53: 168047.79 | M53: 1.63 | N53: 2012 | O53: 2016-02-27 | P53: 1.3365 | R53: 193185 | T53: 96
B54: 46 | C54: 5794778 | E54: 2012 | F54: 2016-03-19 | G54: 買 | H54: 1.31789 | J54: 37.8 | K54: 173843.34 | M54: 3.72 | N54: 2012 | O54: 2016-03-21 | P54: 1.32116 | R54: 150177 | T54: 32.7
B55: 47 | C55: 5944955 | E55: 2012 | F55: 2016-04-19 | G55: 買 | H55: 1.31483 | J55: 80 | K55: 178348.65 | M55: 1.8 | N55: 2012 | O55: 2016-04-23 | P55: 1.31328 | R55: -34444 | T55: -80
B56: 48 | C56: 5910511 | E56: 2012 | F56: 2016-05-04 | G56: 売 | H56: 1.3079 | J56: 14.7 | K56: 177315.33 | M56: 9.77 | N56: 2012 | O56: 2016-05-10 | P56: 1.29453 | R56: 1612653 | T56: 133.7
B57: 49 | C57: 7523164 | E57: 2012 | F57: 2016-05-14 | G57: 売 | H57: 1.28777 | J57: 25.3 | K57: 225694.92 | M57: 7.22 | N57: 2012 | O57: 2016-05-18 | P57: 1.2728 | R57: 1334362 | T57: 149.7
B58: 50 | C58: 8857526 | E58: 2012 | F58: 2016-05-23 | G58: 売 | H58: 1.26267 | J58: 58.6 | K58: 265725.78 | M58: 3.67 | N58: 2012 | O58: 2016-05-25 | P58: 1.26013 | R58: 115083 | T58: 25.4
B59: 51 | C59: 8972609 | E59: 2012 | F59: 2016-05-29 | G59: 売 | H59: 1.25193 | J59: 54.7 | K59: 269178.27 | M59: 3.98 | N59: 2012 | O59: 2016-06-01 | P59: 1.24543 | R59: 319382 | T59: 65
B60: 52 | C60: 9291991 | E60: 2012 | F60: 2016-06-06 | G60: 買 | H60: 1.25182 | J60: 78.3 | K60: 278759.73 | M60: 2.88 | N60: 2012 | O60: 2016-06-08 | P60: 1.25208 | R60: 9244 | T60: 2.6
B61: 53 | C61: 9301235 | E61: 2012 | F61: 2016-06-15 | G61: 買 | H61: 1.26261 | J61: 34.3 | K61: 279037.05 | M61: 6.58 | N61: 2012 | O61: 2016-06-18 | P61: 1.25778 | R61: -392362 | T61: -34.3
B62: 54 | C62: 8908873 | E62: 2012 | F62: 2016-07-06 | G62: 売 | H62: 1.2401 | J62: 36 | K62: 267266.19 | M62: 6.01 | N62: 2012 | O62: 2016-07-13 | P62: 1.22551 | R62: 1082541 | T62: 145.9
B63: 55 | C63: 9991414 | E63: 2012 | F63: 2016-07-20 | G63: 売 | H63: 1.22508 | J63: 30.6 | K63: 299742.42 | M63: 7.93 | N63: 2012 | O63: 2016-07-25 | P63: 1.21329 | R63: 1154255 | T63: 117.9
B64: 56 | C64: 11145669 | E64: 2012 | F64: 2016-09-11 | G64: 買 | H64: 1.28126 | J64: 45.8 | K64: 334370.07 | M64: 5.91 | N64: 2012 | O64: 2016-09-17 | P64: 1.31127 | R64: 2189618 | T64: 300.1
B65: 57 | C65: 13335287 | E65: 2012 | F65: 2016-10-09 | G65: 売 | H65: 1.29172 | J65: 42 | K65: 400058.61 | M65: 7.71 | N65: 2012 | O65: 2016-10-11 | P65: 1.28905 | R65: 254144 | T65: 26.7
B66: 58 | C66: 13589431 | E66: 2012 | F66: 2016-10-16 | G66: 買 | H66: 1.30599 | J66: 76.9 | K66: 407682.93 | M66: 4.29 | N66: 2012 | O66: 2016-10-18 | P66: 1.30816 | R66: 114929 | T66: 21.7
B67: 59 | C67: 13704360 | E67: 2012 | F67: 2016-10-18 | G67: 売 | H67: 1.3091 | J67: 36.2 | K67: 411130.8 | M67: 9.19 | N67: 2012 | O67: 2016-10-30 | P67: 1.28846 | R67: 2341748 | T67: 206.4
B68: 60 | C68: 16046108 | E68: 2012 | F68: 2016-11-21 | G68: 買 | H68: 1.28299 | J68: 12.3 | K68: 481383.24 | M68: 31.7 | N68: 2012 | O68: 2016-11-27 | P68: 1.29725 | R68: 5580765 | T68: 142.6
B69: 61 | C69: 21626873 | E69: 2012 | F69: 2016-12-04 | G69: 買 | H69: 1.30996 | J69: 28.1 | K69: 648806.19 | M69: 18.7 | N69: 2012 | O69: 2016-12-12 | P69: 1.30589 | R69: -939617 | T69: -28.1
B70: 62 | C70: 20687256 | E70: 2012 | F70: 2016-12-13 | G70: 買 | H70: 1.30853 | J70: 45.6 | K70: 620617.68 | M70: 11.02 | N70: 2012 | O70: 2016-12-20 | P70: 1.32019 | R70: 1586335 | T70: 116.6
B71: 63 | C71: 22273591 | E71: 2013 | F71: 2016-01-29 | G71: 買 | H71: 1.34579 | J71: 44.8 | K71: 668207.73 | M71: 12.08 | N71: 2013 | O71: 2016-02-04 | P71: 1.35783 | R71: 1795595 | T71: 120.4
B72: 64 | C72: 24069186 | E72: 2013 | F72: 2016-02-22 | G72: 売 | H72: 1.32 | J72: 44 | K72: 722075.58 | M72: 13.29 | N72: 2013 | O72: 2016-02-25 | P72: 1.32481 | R72: -789196 | T72: -44
B73: 65 | C73: 23279990 | E73: 2013 | F73: 2016-04-05 | G73: 買 | H73: 1.29315 | J73: 32.2 | K73: =IF(F73="","",C73*0.03) -> 698399.7 | M73: 17.56 | N73: 2013 | O73: 2016-04-11 | P73: 1.30424 | R73: 2404202 | T73: 110.9
B74: 66 | C74: =IF(R73="","",C73+R73) -> 25684192 | E74: 2013 | F74: 2016-05-16 | G74: 売 | H74: 1.28816 | J74: 46.7 | K74: 770525.76 | M74: =IF(J74="","",ROUNDDOWN(K74/(J74/81)/100000,2)) -> 13.36 | N74: 2013 | O74: 2016-05-20 | P74: 1.28768 | R74: =IF(O74="","",ROUNDDOWN((IF(G74="売",H74-P74,P74-H74))*M74*1000000000/81,0)) -> 79170 | T74: =IF(O74="","",IF(R74<0,J74*(-1),IF(G74="買",(P74-H74)*10000,(H74-P74)*10000))) -> 4.8
B75: 67 | C75: 25763362 | E75: 2013 | F75: 2016-06-12 | G75: 買 | H75: 1.32973 | J75: 32.9 | K75: 772900.86 | M75: 19.02 | N75: 2013 | O75: 2016-06-14 | P75: 1.33282 | R75: 725577 | T75: 30.9
B76: 68 | C76: 26488939 | E76: 2013 | F76: 2016-06-21 | G76: 売 | H76: 1.32078 | J76: 40.5 | K76: 794668.17 | M76: 15.89 | N76: 2013 | O76: 2016-06-27 | P76: 1.30515 | R76: 3066181 | T76: 156.3
B77: 69 | C77: 29555120 | E77: 2013 | F77: 2016-07-23 | G77: 買 | H77: 1.31958 | J77: 33.6 | K77: 886653.6 | M77: 21.37 | N77: 2013 | O77: 2016-07-30 | P77: 1.32331 | R77: 984075 | T77: 37.3
B78: 70 | C78: 30539195 | E78: 2013 | F78: 2016-08-06 | G78: 買 | H78: 1.32683 | J78: 23 | K78: 916175.85 | M78: 32.26 | N78: 2013 | O78: 2016-08-12 | P78: 1.3319 | R78: 2019237 | T78: 50.7
B79: 71 | C79: 32558432 | E79: 2013 | F79: 2016-08-29 | G79: 売 | H79: 1.33207 | J79: 17.8 | K79: 976752.96 | M79: 44.44 | N79: 2013 | O79: 2016-09-04 | P79: 1.3164 | R79: 8597219 | T79: 156.7
B80: 72 | C80: 41155651 | E80: 2013 | F80: 2016-09-10 | G80: 買 | H80: 1.32536 | J80: 24.1 | K80: 1234669.53 | M80: 41.49 | N80: 2013 | O80: 2016-09-25 | P80: 1.34614 | R80: 10643977 | T80: 207.8
B81: 73 | C81: 51799628 | E81: 2013 | F81: 2016-10-23 | G81: 買 | H81: 1.37652 | J81: 24.4 | K81: 1553988.84 | M81: 51.58 | N81: 2013 | O81: 2016-10-25 | P81: 1.37737 | R81: 541271 | T81: 8.5
B82: 74 | C82: 52340899 | E82: 2013 | F82: 2016-10-30 | G82: 売 | H82: 1.36941 | J82: 86.9 | K82: 1570226.97 | M82: 14.63 | N82: 2013 | O82: 2016-11-04 | P82: 1.35065 | R82: 3388380 | T82: 187.6
B83: 75 | C83: 55729279 | E83: 2013 | F83: 2016-11-26 | G83: 買 | H83: 1.3562 | J83: 41.7 | K83: 1671878.37 | M83: 32.47 | N83: 2013 | O83: 2016-11-29 | P83: 1.35816 | R83: 785693 | T83: 19.6
B84: 76 | C84: 56514972 | E84: 2013 | F84: 2016-12-06 | G84: 買 | H84: 1.36783 | J84: 49.8 | K84: 1695449.16 | M84: 27.57 | N84: 2013 | O84: 2016-12-12 | P84: 1.37442 | R84: 2243040 | T84: 65.9
B85: 77 | C85: 58758012 | E85: 2014 | F85: 2016-04-03 | G85: 売 | H85: 1.37389 | J85: 65.5 | K85: 1762740.36 | M85: 21.79 | N85: 2014 | O85: 2016-04-07 | P85: 1.37196 | R85: 519193 | T85: 19.3
B86: 78 | C86: 59277205 | E86: 2014 | F86: 2016-06-30 | G86: 買 | H86: 1.36629 | J86: 17.5 | K86: 1778316.15 | M86: 82.31 | N86: 2014 | O86: 2016-07-02 | P86: 1.36769 | R86: 1422641 | T86: 14
B87: 79 | C87: 60699846 | E87: 2014 | F87: 2016-07-03 | G87: 売 | H87: 1.36435 | J87: 19.9 | K87: 1820995.38 | M87: 74.12 | N87: 2014 | O87: 2016-07-07 | P87: 1.3608 | R87: 3248469 | T87: 35.5
B88: 80 | C88: 63948315 | E88: 2014 | F88: 2016-07-08 | G88: 買 | H88: 1.36015 | J88: 11.8 | K88: 1918449.45 | M88: 131.69 | N88: 2014 | O88: 2016-07-10 | P88: 1.36009 | R88: -97548 | T88: -11.8
B89: 81 | C89: 63850767 | E89: 2014 | F89: 2016-08-22 | G89: 売 | H89: 1.32235 | J89: 37.1 | K89: 1915523.01 | M89: 41.82 | N89: 2014 | O89: 2016-08-27 | P89: 1.3209 | R89: 748629 | T89: 14.5
B90: 82 | C90: 64599396 | E90: 2014 | F90: 2016-10-08 | G90: 買 | H90: 1.26845 | J90: 44.4 | K90: 1937981.88 | M90: 35.35 | N90: 2014 | O90: 2016-10-09 | P90: 1.26744 | R90: -440783 | T90: -44.4
B91: 83 | C91: 64158613 | E91: 2014 | F91: 2016-12-03 | G91: 売 | H91: 1.23195 | J91: 24.6 | K91: 1924758.39 | M91: 63.37 | N91: 2014 | O91: 2016-12-04 | P91: 1.24142 | R91: -7408813 | T91: -24.6
B92: 84 | C92: 56749800 | E92: 2014 | F92: 2016-12-10 | G92: 買 | H92: 1.23974 | J92: 33.5 | K92: 1702494 | M92: 41.16 | N92: 2014 | O92: 2016-12-11 | P92: 1.24008 | R92: 172770 | T92: 3.4
B93: 85 | C93: 56922570 | E93: 2014 | F93: 1900-01-01T05:23:15.072 | G93: 売 | H93: 1.22217 | J93: 23.1 | K93: 1707677.1 | M93: 59.87 | N93: 2014 | O93: 2016-12-26 | P93: 1.22158 | R93: 436090 | T93: 5.9
B94: 86 | C94: 57358660 | E94: 2015 | F94: 2016-03-05 | G94: 売 | H94: 1.10244 | J94: 36.5 | K94: 1720759.8 | M94: 38.18 | N94: 2015 | O94: 2016-03-16 | P94: 1.06107 | R94: 19500081 | T94: 413.7
B95: 87 | C95: 76858741 | E95: 2015 | F95: 2016-03-27 | G95: 売 | H95: 1.08757 | J95: 55.1 | K95: 2305762.23 | M95: 33.89 | N95: 2015 | O95: 2016-04-01 | P95: 1.07914 | R95: 3527070 | T95: 84.3
B96: 88 | C96: 80385811 | E96: 2015 | F96: 2016-04-08 | G96: 売 | H96: 1.08412 | J96: 45.6 | K96: 2411574.33 | M96: 42.83 | N96: 2015 | O96: 2016-04-14 | P96: 1.0593 | R96: 13123958 | T96: 248.2
B97: 89 | C97: 93509769 | E97: 2015 | F97: 2016-04-16 | G97: 買 | H97: 1.07511 | J97: 67.1 | K97: 2805293.07 | M97: 33.86 | N97: 2015 | O97: 2016-04-20 | P97: 1.07473 | R97: -158849 | T97: -67.1
B98: 90 | C98: 93350920 | E98: 2015 | F98: 2016-04-29 | G98: 買 | H98: 1.09816 | J98: 15.2 | K98: 2800527.6 | M98: 149.23 | N98: 2015 | O98: 2016-05-04 | P98: 1.11351 | R98: 28280006 | T98: 153.5
B99: 91 | C99: 121630926 | E99: 2015 | F99: 2016-05-20 | G99: 売 | H99: 1.11202 | J99: 31.1 | K99: 3648927.78 | M99: 95.03 | N99: 2015 | O99: 2016-05-21 | P99: 1.11723 | R99: -6112423 | T99: -31.1
B100: 92 | C100: 115518503 | E100: 2015 | F100: 2016-06-03 | G100: 買 | H100: 1.11423 | J100: 63.7 | K100: 3465555.09 | M100: 44.06 | N100: 2015 | O100: 2016-06-05 | P100: 1.11789 | R100: 1990859 | T100: 36.6
B101: 93 | C101: 117509362 | E101: 2015 | F101: 2016-07-06 | G101: 売 | H101: 1.10184 | J101: 36.4 | K101: 3525280.86 | M101: 78.44 | N101: 2015 | O101: 2016-07-06 | P101: 1.10949 | R101: =IF(O101="","",ROUNDDOWN((IF(G101="売",H101-P101,P101-H101))*M101*10000000/81,0)) -> -74082 | T101: =IF(O101="","",IF(R101<0,J101*(-1),IF(G101="買",(P101-H101)*100,(H101-P101)*100))) -> -36.4
B102: 94 | C102: 117435280 | E102: 2015 | F102: 2016-07-16 | G102: 売 | H102: 1.0855 | J102: 70.6 | K102: 3523058.4 | M102: 40.42 | N102: 2015 | O102: 2016-07-21 | P102: 1.08625 | R102: -3742 | T102: -70.6
B103: 95 | C103: 117431538 | E103: 2015 | F103: 2016-08-20 | G103: 買 | H103: 1.1145 | J103: 38.8 | K103: 3522946.14 | M103: 73.54 | N103: 2015 | O103: 2016-08-25 | P103: 1.15574 | R103: 374418 | T103: 4.124
B104: 96 | C104: 117805956 | E104: 2015 | F104: 2016-08-26 | G104: 売 | H104: 1.13636 | J104: 73.1 | K104: 3534178.68 | M104: 39.16 | N104: 2015 | O104: 2016-08-31 | P104: 1.12609 | R104: 49651 | T104: 1.027
B105: 97 | C105: 117855607 | E105: 2015 | F105: 2016-09-01 | G105: 買 | H105: 1.12817 | J105: 48 | K105: 3535668.21 | M105: 59.66 | N105: 2015 | O105: 2016-09-02 | P105: 1.12336 | R105: -35427 | T105: -48
B106: 98 | C106: 117820180 | E106: 2015 | F106: 2016-09-17 | G106: 買 | H106: 1.13355 | J106: 25.9 | K106: 3534605.4 | M106: 110.54 | N106: 2015 | O106: 2016-09-18 | P106: 1.12687 | R106: -91161 | T106: -25.9
B107: 99 | C107: 117729019 | E107: 2015 | F107: 2016-10-09 | G107: 買 | H107: 1.1286 | J107: 20.7 | K107: 3531870.57 | M107: 138.2 | N107: 2015 | O107: 2016-10-13 | P107: 1.13435 | R107: 98104 | T107: 0.575
B108: 100 | C108: 117827123 | E108: 2015 | F108: 2016-10-13 | G108: 買 | H108: 1.1395 | J108: 40.4 | K108: 3534813.69 | M108: 70.87 | N108: 2015 | O108: 2016-10-13 | P108: 1.13688 | R108: -22923 | T108: -40.4
